Workbook

Sheet OVERALL STATS
A1: OVERALL TITLE COMPANY MARKET STATISTICS Carson City County, NV)
A2: Reporting Period: MAY, 2020
A5: OVERALL SALES MARKET (Resales & Subdivision Sales)
A6: TITLE COMPANY | D6: % OF | E6: % OF | F6: RANK BY | G6: RANK BY
B7: CLOSINGS | C7: DOLLAR VOLUME | D7: CLOSINGS | E7: DOLLAR VOLUME | F7: CLOSINGS | G7: DOLLAR VOLUME
A8: Ticor Title | B8: 15 | C8: 6227762 | D8: =B8/$B$17 -> 0.2631578947 | E8: =C8/$C$17 -> 0.2399728606 | F8: =RANK(B8,$B$8:$B$16) -> 1 | G8: =RANK(C8,$C$8:$C$16) -> 1
A9: Western Title | B9: 15 | C9: 5507264 | D9: =B9/$B$17 -> 0.2631578947 | E9: =C9/$C$17 -> 0.2122100838 | F9: =RANK(B9,$B$8:$B$16) -> 1 | G9: =RANK(C9,$C$8:$C$16) -> 2
A10: First Centennial Title | B10: 9 | C10: 3059891 | D10: =B10/$B$17 -> 0.1578947368 | E10: =C10/$C$17 -> 0.1179060466 | F10: 3 | G10: 5
A11: Calatlantic Title West | B11: 8 | C11: 3828126 | D11: =B11/$B$17 -> 0.1403508772 | E11: =C11/$C$17 -> 0.1475082617 | F11: 4 | G11: 4
A12: Toiyabe Title | B12: 3 | C12: 1354900 | D12: 0.05263157895 | E12: 0.05220803699 | F12: 5 | G12: 6
A13: First American Title | B13: 2 | C13: 4325000 | D13: 0.0350877193 | E13: 0.1666541885 | F13: 6 | G13: 3
A14: Stewart Title | B14: 2 | C14: 910000 | D14: 0.0350877193 | E14: 0.03506481191 | F14: 6 | G14: 7
A15: North American Title | B15: 2 | C15: 354000 | D15: 0.0350877193 | E15: 0.01364059716 | F15: 6 | G15: 9
A16: Signature Title | B16: 1 | C16: 385000 | D16: 0.01754385965 | E16: 0.01483511273 | F16: 9 | G16: 8
A17: GRAND TOTAL | B17: =SUM(B8:B16) -> 57 | C17: =SUM(C8:C16) -> 25951943 | D17: =SUM(D8:D16) -> 1 | E17: =SUM(E8:E16) -> 1
A19: OVERALL LOAN ONLY MARKET (Refi's, Construction, Commercial, Credit Lines, Homequity, etc.)
D20: % OF | E20: % OF | F20: RANK BY | G20: RANK BY
A21: TITLECOMPANY | B21: CLOSINGS | C21: DOLLAR VOLUME | D21: CLOSINGS | E21: DOLLAR VOLUME | F21: CLOSINGS | G21: DOLLAR VOLUME
A22: Ticor Title | B22: 36 | C22: 11402888 | D22: =B22/$B$30 -> 0.3302752294 | E22: =C22/$C$30 -> 0.3721239574 | F22: =RANK(B22,$B$22:$B$29) -> 1 | G22: =RANK(C22,$C$22:$C$29) -> 1
A23: Western Title | B23: 36 | C23: 9596852 | D23: 0.3302752294 | E23: 0.3131854443 | F23: =RANK(B23,$B$22:$B$29) -> 1 | G23: =RANK(C23,$C$22:$C$29) -> 2
A24: First Centennial Title | B24: 23 | C24: 6160120 | D24: 0.2110091743 | E24: 0.2010304962 | F24: 3 | G24: 3
A25: First American Title | B25: 7 | C25: 1560457 | D25: 0.06422018349 | E25: 0.05092424255 | F25: 4 | G25: 4
A26: North American Title | B26: 3 | C26: 1198897 | D26: 0.02752293578 | E26: 0.03912502659 | F26: 5 | G26: 5
A27: Acme Title and Escrow | B27: 2 | C27: 271500 | D27: 0.01834862385 | E27: 0.008860181249 | F27: 6 | G27: 7
A28: Toiyabe Title | B28: 1 | C28: 277000 | D28: =B28/$B$30 -> 0.009174311927 | E28: =C28/$C$30 -> 0.009039669267 | F28: 7 | G28: 6
A29: Stewart Title | B29: 1 | C29: 175000 | D29: =B29/$B$30 -> 0.009174311927 | E29: =C29/$C$30 -> 0.005710982389 | F29: 7 | G29: 8
A30: GRAND TOTAL | B30: =SUM(B22:B29) -> 109 | C30: =SUM(C22:C29) -> 30642714 | D30: =SUM(D22:D29) -> 1 | E30: =SUM(E22:E29) -> 1
A32: OVERALL SALES AND LOAN ONLY MARKETS COMBINED
D33: % OF | E33: % OF | F33: RANK BY | G33: RANK BY
A34: TITLECOMPANY | B34: CLOSINGS | C34: DOLLAR VOLUME | D34: CLOSINGS | E34: DOLLAR VOLUME | F34: CLOSINGS | G34: DOLLAR VOLUME
A35: Ticor Title | B35: 51 | C35: 17630650 | D35: =B35/$B$46 -> 0.3 | E35: =C35/$C$46 -> 0.3027939639 | F35: =RANK(B35,$B$35:$B$45) -> 1 | G35: =RANK(C35,$C$35:$C$45) -> 1
A36: Western Title | B36: 51 | C36: 15104116 | D36: =B36/$B$46 -> 0.3 | E36: =C36/$C$46 -> 0.2594025266 | F36: =RANK(B36,$B$35:$B$45) -> 1 | G36: =RANK(C36,$C$35:$C$45) -> 2
A37: First Centennial Title | B37: 32 | C37: 9220011 | D37: =B37/$B$46 -> 0.1882352941 | E37: =C37/$C$46 -> 0.1583471782 | F37: =RANK(B37,$B$35:$B$45) -> 3 | G37: =RANK(C37,$C$35:$C$45) -> 3
A38: First American Title | B38: 9 | C38: 5885457 | D38: =B38/$B$46 -> 0.05294117647 | E38: =C38/$C$46 -> 0.101078568 | F38: =RANK(B38,$B$35:$B$45) -> 4 | G38: =RANK(C38,$C$35:$C$45) -> 4
A39: Calatlantic Title West | B39: 8 | C39: 3828126 | D39: =B39/$B$46 -> 0.04705882353 | E39: =C39/$C$46 -> 0.06574536083 | F39: =RANK(B39,$B$35:$B$45) -> 5 | G39: =RANK(C39,$C$35:$C$45) -> 5
A40: North American Title | B40: 5 | C40: 1552897 | D40: =B40/$B$46 -> 0.02941176471 | E40: =C40/$C$46 -> 0.0266699094 | F40: =RANK(B40,$B$35:$B$45) -> 6 | G40: =RANK(C40,$C$35:$C$45) -> 8
A41: Toiyabe Title | B41: 4 | C41: 1631900 | D41: =B41/$B$46 -> 0.02352941176 | E41: =C41/$C$46 -> 0.02802673014 | F41: =RANK(B41,$B$35:$B$45) -> 7 | G41: =RANK(C41,$C$35:$C$45) -> 6
A42: Toiyabe Title | B42: 4 | C42: 1631900 | D42: =B42/$B$46 -> 0.02352941176 | E42: =C42/$C$46 -> 0.02802673014 | F42: =RANK(B42,$B$35:$B$45) -> 7 | G42: =RANK(C42,$C$35:$C$45) -> 6
A43: Stewart Title | B43: 3 | C43: 1085000 | D43: =B43/$B$46 -> 0.01764705882 | E43: =C43/$C$46 -> 0.01863410883 | F43: =RANK(B43,$B$35:$B$45) -> 9 | G43: =RANK(C43,$C$35:$C$45) -> 9
A44: Acme Title and Escrow | B44: 2 | C44: 271500 | D44: =B44/$B$46 -> 0.01176470588 | E44: 0.004662820781 | F44: =RANK(B44,$B$35:$B$45) -> 10 | G44: =RANK(C44,$C$35:$C$45) -> 11
A45: Signature Title | B45: 1 | C45: 385000 | D45: =B45/$B$46 -> 0.005882352941 | E45: =C45/$C$46 -> 0.006612103134 | F45: =RANK(B45,$B$35:$B$45) -> 11 | G45: =RANK(C45,$C$35:$C$45) -> 10
A46: GRAND TOTAL | B46: =SUM(B35:B45) -> 170 | C46: =SUM(C35:C45) -> 58226557 | D46: =SUM(D35:D45) -> 1 | E46: =SUM(E35:E45) -> 1
A48: Information provided by Datasource | D48: SEE CHARTS BELOW:
A49: www.datasourcenev.com

Sheet SALES STATS
A1: SALES MARKET Carson City County, NV)
A2: ='OVERALL STATS'!A2 -> Reporting Period: MAY, 2020
A4: RESALE MARKET (Includes ALL types of real property)
D5: % OF | E5: % OF | F5: RANK BY | G5: RANK BY
A6: TITLE COMPANY | B6: CLOSINGS | C6: DOLLAR VOLUME | D6: CLOSINGS | E6: DOLLAR VOLUME | F6: CLOSINGS | G6: DOLLAR VOLUME
A7: Ticor Title | B7: 14 | C7: 5942475 | D7: =B7/$B$15 -> 0.3043478261 | E7: =C7/$C$15 -> 0.2873375225 | F7: =RANK(B7,$B$7:$B$14) -> 1 | G7: =RANK(C7,$C$7:$C$14) -> 1
A8: Western Title | B8: 13 | C8: 4349900 | D8: =B8/$B$15 -> 0.2826086957 | E8: =C8/$C$15 -> 0.2103314678 | F8: =RANK(B8,$B$7:$B$14) -> 2 | G8: =RANK(C8,$C$7:$C$14) -> 2
A9: First Centennial Title | B9: 9 | C9: 3059891 | D9: =B9/$B$15 -> 0.1956521739 | E9: =C9/$C$15 -> 0.1479554393 | F9: 3 | G9: 4
A10: Toiyabe Title | B10: 3 | C10: 1354900 | D10: =B10/$B$15 -> 0.0652173913 | E10: =C10/$C$15 -> 0.06551371427 | F10: 4 | G10: 5
A11: First American Title | B11: 2 | C11: 4325000 | D11: =B11/$B$15 -> 0.04347826087 | E11: =C11/$C$15 -> 0.2091274738 | F11: 5 | G11: 3
A12: Stewart Title | B12: 2 | C12: 910000 | D12: =B12/$B$15 -> 0.04347826087 | E12: =C12/$C$15 -> 0.04400138754 | F12: 5 | G12: 6
A13: North American Title | B13: 2 | C13: 354000 | D13: =B13/$B$15 -> 0.04347826087 | E13: =C13/$C$15 -> 0.01711702329 | F13: 5 | G13: 8
A14: Signature Title | B14: 1 | C14: 385000 | D14: =B14/$B$15 -> 0.02173913043 | E14: =C14/$C$15 -> 0.01861597165 | F14: 8 | G14: 7
A15: GRAND TOTAL | B15: =SUM(B7:B14) -> 46 | C15: =SUM(C7:C14) -> 20681166 | D15: =SUM(D7:D14) -> 1 | E15: =SUM(E7:E14) -> 1
A17: SUBDIVISION SALES (Builder/Developer Sales)
D18: % OF | E18: % OF | F18: RANK BY | G18: RANK BY
A19: TITLE COMPANY | B19: CLOSINGS | C19: DOLLAR VOLUME | D19: CLOSINGS | E19: DOLLAR VOLUME | F19: CLOSINGS | G19: DOLLAR VOLUME
A20: Calatlantic Title West | B20: 8 | C20: 3828126 | D20: =B20/$B$23 -> 0.7272727273 | E20: =C20/$C$23 -> 0.7262925371 | F20: 1 | G20: 1
A21: Western Title | B21: 2 | C21: 1157364 | D21: =B21/$B$23 -> 0.1818181818 | E21: =C21/$C$23 -> 0.2195812875 | F21: 2 | G21: 2
A22: Ticor Title | B22: 1 | C22: 285287 | D22: =B22/$B$23 -> 0.09090909091 | E22: =C22/$C$23 -> 0.05412617532 | F22: 3 | G22: 3
A23: GRAND TOTAL | B23: =SUM(B20:B22) -> 11 | C23: =SUM(C20:C22) -> 5270777 | D23: =SUM(D20:D22) -> 1 | E23: =SUM(E20:E22) -> 1
A25: RESIDENTIAL RESALE MARKET (Residential Properties Only)
D26: % OF | E26: % OF | F26: RANK BY | G26: RANK BY
A27: TITLE COMPANY | B27: CLOSINGS | C27: DOLLAR VOLUME | D27: CLOSINGS | E27: DOLLAR VOLUME | F27: CLOSINGS | G27: DOLLAR VOLUME
A28: Western Title | B28: 13 | C28: 4349900 | D28: =B28/$B$36 -> 0.3095238095 | E28: =C28/$C$36 -> 0.2800192168 | F28: 1 | G28: 2
A29: Ticor Title | B29: 12 | C29: 4725600 | D29: 0.2857142857 | E29: 0.304204421 | F29: 2 | G29: 1
A30: First Centennial Title | B30: 9 | C30: 3059891 | D30: 0.2142857143 | E30: 0.1969765469 | F30: 3 | G30: 3
A31: Toiyabe Title | B31: 3 | C31: 1354900 | D31: 0.07142857143 | E31: 0.08721994457 | F31: 4 | G31: 4
A32: Stewart Title | B32: 2 | C32: 910000 | D32: 0.04761904762 | E32: 0.05858007939 | F32: 5 | G32: 5
A33: First American Title | B33: 1 | C33: 475000 | D33: 0.02380952381 | E33: 0.03057751397 | F33: 6 | G33: 6
A34: Signature Title | B34: 1 | C34: 385000 | D34: =B34/$B$36 -> 0.02380952381 | E34: =C34/$C$36 -> 0.02478387974 | F34: 6 | G34: 7
A35: North American Title | B35: 1 | C35: 274000 | D35: =B35/$B$36 -> 0.02380952381 | E35: =C35/$C$36 -> 0.01763839753 | F35: 6 | G35: 8
A36: GRAND TOTAL | B36: =SUM(B28:B35) -> 42 | C36: =SUM(C28:C35) -> 15534291 | D36: =SUM(D28:D35) -> 1 | E36: =SUM(E28:E35) -> 1
A38: COMMERCIAL/INDUSTRIAL, APARTMENTS, MOBILE HOME PARKS SALES MARKET
D39: % OF | E39: % OF | F39: RANK BY | G39: RANK BY
A40: TITLE COMPANY | B40: CLOSINGS | C40: DOLLAR VOLUME | D40: CLOSINGS | E40: DOLLAR VOLUME | F40: CLOSINGS | G40: DOLLAR VOLUME
A41: First American Title | B41: 1 | C41: 3850000 | D41: =B41/$B$43 -> 0.5 | E41: =C41/$C$43 -> 0.811915118 | F41: 1 | G41: 1
A42: Ticor Title | B42: 1 | C42: 891875 | D42: =B42/$B$43 -> 0.5 | E42: =C42/$C$43 -> 0.188084882 | F42: 1 | G42: 2
A43: GRAND TOTAL | B43: =SUM(B41:B42) -> 2 | C43: =SUM(C41:C42) -> 4741875 | D43: =SUM(D41:D42) -> 1 | E43: =SUM(E41:E42) -> 1
A45: VACANT LAND SALES
D46: % OF | E46: % OF | F46: RANK BY | G46: RANK BY
A47: TITLE COMPANY | B47: CLOSINGS | C47: DOLLAR VOLUME | D47: CLOSINGS | E47: DOLLAR VOLUME | F47: CLOSINGS | G47: DOLLAR VOLUME
A48: Ticor Title | B48: 1 | C48: 325000 | D48: =B48/$B$50 -> 0.5 | E48: =C48/$C$50 -> 0.8024691358 | F48: 1 | G48: 1
A49: North American Title | B49: 1 | C49: 80000 | D49: =B49/$B$50 -> 0.5 | E49: =C49/$C$50 -> 0.1975308642 | F49: 1 | G49: 2
A50: GRAND TOTAL | B50: =SUM(B48:B49) -> 2 | C50: =SUM(C48:C49) -> 405000 | D50: =SUM(D48:D49) -> 1 | E50: =SUM(E48:E49) -> 1
A53: Information provided by Datasource
A54: www.datasourcenev.com

Sheet LOAN ONLY STATS
A1: LOAN ONLY MARKETS Carson City County, NV)
A2: ='OVERALL STATS'!A2 -> Reporting Period: MAY, 2020
A4: CONVENTIONAL LOANS MARKET (Refi's)
D5: % OF | E5: % OF | F5: RANK BY | G5: RANK BY
A6: TITLECOMPANY | B6: CLOSINGS | C6: DOLLAR VOLUME | D6: CLOSINGS | E6: DOLLAR VOLUME | F6: CLOSINGS | G6: DOLLAR VOLUME
A7: Ticor Title | B7: 35 | C7: 9407888 | D7: =B7/$B$15 -> 0.3398058252 | E7: =C7/$C$15 -> 0.3421790533 | F7: =RANK(B7,$B$7:$B$14) -> 1 | G7: =RANK(C7,$C$7:$C$14) -> 2
A8: Western Title | B8: 34 | C8: 9438188 | D8: =B8/$B$15 -> 0.3300970874 | E8: =C8/$C$15 -> 0.3432811099 | F8: =RANK(B8,$B$7:$B$14) -> 2 | G8: =RANK(C8,$C$7:$C$14) -> 1
A9: First Centennial Title | B9: 20 | C9: 5165120 | D9: =B9/$B$15 -> 0.1941747573 | E9: =C9/$C$15 -> 0.1878631922 | F9: 3 | G9: 3
A10: First American Title | B10: 7 | C10: 1560457 | D10: 0.06796116505 | E10: 0.05675617088 | F10: 4 | G10: 4
A11: North American Title | B11: 3 | C11: 1198897 | D11: 0.02912621359 | E11: 0.04360568923 | F11: 5 | G11: 5
A12: Acme Title and Escrow | B12: 2 | C12: 271500 | D12: 0.01941747573 | E12: 0.009874863834 | F12: 6 | G12: 7
A13: Toiyabe Title | B13: 1 | C13: 277000 | D13: 0.009708737864 | E13: 0.01007490712 | F13: 7 | G13: 6
A14: Stewart Title | B14: 1 | C14: 175000 | D14: =B14/$B$15 -> 0.009708737864 | E14: =C14/$C$15 -> 0.006365013521 | F14: 7 | G14: 8
A15: GRAND TOTAL | B15: =SUM(B7:B14) -> 103 | C15: =SUM(C7:C14) -> 27494050 | D15: =SUM(D7:D14) -> 1 | E15: =SUM(E7:E14) -> 1
A17: COMMERCIAL LOANS MARKET
D18: % OF | E18: % OF | F18: RANK BY | G18: RANK BY
A19: TITLECOMPANY | B19: CLOSINGS | C19: DOLLAR VOLUME | D19: CLOSINGS | E19: DOLLAR VOLUME | F19: CLOSINGS | G19: DOLLAR VOLUME
A20: Ticor Title | B20: 1 | C20: 1995000 | D20: =B20/$B$21 -> 1 | E20: =C20/$C$21 -> 1 | F20: 1 | G20: 1
A21: GRAND TOTAL | B21: =SUM(B20:B20) -> 1 | C21: =SUM(C20:C20) -> 1995000 | D21: =SUM(D20:D20) -> 1 | E21: =SUM(E20:E20) -> 1
A23: HOME EQUITY & CREDIT LINE LOANS MARKET
D24: % OF | E24: % OF | F24: RANK BY | G24: RANK BY
A25: TITLECOMPANY | B25: CLOSINGS | C25: DOLLAR VOLUME | D25: CLOSINGS | E25: DOLLAR VOLUME | F25: CLOSINGS | G25: DOLLAR VOLUME
A26: First Centennial Title | B26: 2 | C26: 395000 | D26: =B26/$B$28 -> 0.5 | E26: =C26/$C$28 -> 0.7134290833 | F26: 1 | G26: 1
A27: Western Title | B27: 2 | C27: 158664 | D27: =B27/$B$28 -> 0.5 | E27: =C27/$C$28 -> 0.2865709167 | F27: 1 | G27: 2
A28: GRAND TOTAL | B28: =SUM(B26:B27) -> 4 | C28: =SUM(C26:C27) -> 553664 | D28: =SUM(D26:D27) -> 1 | E28: =SUM(E26:E27) -> 1
A30: CONSTRUCTION LOANS MARKET
D31: % OF | E31: % OF | F31: RANK BY | G31: RANK BY
A32: TITLECOMPANY | B32: CLOSINGS | C32: DOLLAR VOLUME | D32: CLOSINGS | E32: DOLLAR VOLUME | F32: CLOSINGS | G32: DOLLAR VOLUME
A33: NO CONSTRUCTION LOANS
A34: GRAND TOTAL | B34: =SUM(B33:B33) -> 0 | C34: =SUM(C33:C33) -> 0
A36: HARD MONEY LOANS MARKET
D37: % OF | E37: % OF | F37: RANK BY | G37: RANK BY
A38: TITLECOMPANY | B38: CLOSINGS | C38: DOLLAR VOLUME | D38: CLOSINGS | E38: DOLLAR VOLUME | F38: CLOSINGS | G38: DOLLAR VOLUME
A39: First Centennial Title | B39: 1 | C39: 600000 | D39: =B39/$B$40 -> 1 | E39: =C39/$C$40 -> 1 | F39: 1 | G39: 1
A40: GRAND TOTAL | B40: =SUM(B39:B39) -> 1 | C40: =SUM(C39:C39) -> 600000 | D40: =SUM(D39:D39) -> 1 | E40: =SUM(E39:E39) -> 1
A44: Information provided by Datasource
A45: www.datasourcenev.com

Sheet BRANCH SALES TRACKING
A1: BUILDER/DEVELOPER | B1: (All)
A2: PROPTYPE | B2: (All)
D4: Values
A5: TITLE COMPANY | B5: BRANCH | C5: EO | D5: CLOSINGS | E5: DOLLAR VOL. | F5: % OF CLOSINGS | G5: % OF DOLLAR VOL.
A6: First American Title | D6: 2 | E6: 4325000 | F6: 0.0350877193 | G6: 0.1666541885
B7: PHOENIX, AZ | D7: 1 | E7: 3850000 | F7: 0.01754385965 | G7: 0.1483511273
C8: NCS | D8: 1 | E8: 3850000 | F8: 0.01754385965 | G8: 0.1483511273
B10: MINDEN | D10: 1 | E10: 475000 | F10: 0.01754385965 | G10: 0.01830306116
C11: MK | D11: 1 | E11: 475000 | F11: 0.01754385965 | G11: 0.01830306116
A13: First Centennial Title | D13: 9 | E13: 3059891 | F13: 0.1578947368 | G13: 0.1179060466
B14: CARSON CITY | D14: 5 | E14: 1890191 | F14: 0.08771929825 | G14: 0.0728342768
C15: 23 | D15: 1 | E15: 197000 | F15: 0.01754385965 | G15: 0.007590953787
C16: 18 | D16: 3 | E16: 1384500 | F16: 0.05263157895 | G16: 0.05334860669
C17: 17 | D17: 1 | E17: 308691 | F17: 0.01754385965 | G17: 0.01189471632
B19: RIDGEVIEW | D19: 3 | E19: 844700 | F19: 0.05263157895 | G19: 0.03254862266
C20: 9 | D20: 3 | E20: 844700 | F20: 0.05263157895 | G20: 0.03254862266
B22: CARSONCITY | D22: 1 | E22: 325000 | F22: 0.01754385965 | G22: 0.01252314711
C23: 17 | D23: 1 | E23: 325000 | F23: 0.01754385965 | G23: 0.01252314711
A25: North American Title | D25: 2 | E25: 354000 | F25: 0.0350877193 | G25: 0.01364059716
B26: HAMMILL | D26: 2 | E26: 354000 | F26: 0.0350877193 | G26: 0.01364059716
C27: UNK | D27: 2 | E27: 354000 | F27: 0.0350877193 | G27: 0.01364059716
A29: Ticor Title | D29: 15 | E29: 6227762 | F29: 0.2631578947 | G29: 0.2399728606
B30: CARSON CITY | D30: 11 | E30: 4331600 | F30: 0.1929824561 | G30: 0.1669085047
C31: DKD | D31: 8 | E31: 3276700 | F31: 0.1403508772 | G31: 0.1262602958
C32: DC | D32: 3 | E32: 1054900 | F32: 0.05263157895 | G32: 0.04064820888
B34: KIETZKE | D34: 2 | E34: 1177162 | F34: 0.0350877193 | G34: 0.04535930123
C35: AE | D35: 1 | E35: 285287 | F35: 0.01754385965 | G35: 0.0109928956
C36: CD | D36: 1 | E36: 891875 | F36: 0.01754385965 | G36: 0.03436640563
B38: LAKESIDE | D38: 1 | E38: 244000 | F38: 0.01754385965 | G38: 0.009401993523
C39: SL | D39: 1 | E39: 244000 | F39: 0.01754385965 | G39: 0.009401993523
B41: CARSONCITY | D41: 1 | E41: 475000 | F41: 0.01754385965 | G41: 0.01830306116
C42: DC | D42: 1 | E42: 475000 | F42: 0.01754385965 | G42: 0.01830306116
A44: Toiyabe Title | D44: 3 | E44: 1354900 | F44: 0.05263157895 | G44: 0.05220803699
B45: MCCARRAN | D45: 3 | E45: 1354900 | F45: 0.05263157895 | G45: 0.05220803699
C46: JH | D46: 3 | E46: 1354900 | F46: 0.05263157895 | G46: 0.05220803699
A48: Western Title | D48: 15 | E48: 5507264 | F48: 0.2631578947 | G48: 0.2122100838
B49: CARSON CITY | D49: 10 | E49: 3645364 | F49: 0.1754385965 | G49: 0.1404659374
C50: AMG | D50: 4 | E50: 1315000 | F50: 0.0701754386 | G50: 0.05067057985
C51: KDJ | D51: 6 | E51: 2330364 | F51: 0.1052631579 | G51: 0.08979535752
B53: GARDNERVILLE | D53: 1 | E53: 370000 | F53: 0.01754385965 | G53: 0.01425712133
C54: WLD | D54: 1 | E54: 370000 | F54: 0.01754385965 | G54: 0.01425712133
B56: KIETZKE | D56: 2 | E56: 593000 | F56: 0.0350877193 | G56: 0.02284992688
C57: JMS | D57: 1 | E57: 365000 | F57: 0.01754385965 | G57: 0.01406445752
C58: SAB | D58: 1 | E58: 228000 | F58: 0.01754385965 | G58: 0.008785469358
B60: SOUTH KIETZKE | D60: 2 | E60: 898900 | F60: 0.0350877193 | G60: 0.03463709827
C61: CRF | D61: 2 | E61: 898900 | F61: 0.0350877193 | G61: 0.03463709827
A63: Stewart Title | D63: 2 | E63: 910000 | F63: 0.0350877193 | G63: 0.03506481191
B64: PLUMB | D64: 1 | E64: 520000 | F64: 0.01754385965 | G64: 0.02003703538
C65: UNK | D65: 1 | E65: 520000 | F65: 0.01754385965 | G65: 0.02003703538
B67: PROFESSIONAL | D67: 1 | E67: 390000 | F67: 0.01754385965 | G67: 0.01502777653
C68: UNK | D68: 1 | E68: 390000 | F68: 0.01754385965 | G68: 0.01502777653
A70: Signature Title | D70: 1 | E70: 385000 | F70: 0.01754385965 | G70: 0.01483511273
B71: MINDEN | D71: 1 | E71: 385000 | F71: 0.01754385965 | G71: 0.01483511273
C72: NF | D72: 1 | E72: 385000 | F72: 0.01754385965 | G72: 0.01483511273
A74: Calatlantic Title West | D74: 8 | E74: 3828126 | F74: 0.1403508772 | G74: 0.1475082617
B75: MCCARRAN | D75: 7 | E75: 3348191 | F75: 0.1228070175 | G75: 0.1290150414
C76: LH | D76: 7 | E76: 3348191 | F76: 0.1228070175 | G76: 0.1290150414
B78: HAMMILL | D78: 1 | E78: 479935 | F78: 0.01754385965 | G78: 0.01849322033
C79: LH | D79: 1 | E79: 479935 | F79: 0.01754385965 | G79: 0.01849322033
A81: Grand Total | D81: 57 | E81: 25951943 | F81: 1 | G81: 1

Sheet LENDER TRACKING
A1: TYPELOAN | B1: (All)
C3: Values
A4: LENDER | B4: TITLE COMPANY | C4: CLOSINGS | D4: DOLLAR VOL. | E4: % OF CLOSINGS | F4: % OF DOLLAR VOL.
A5: BANK OF THE WEST | C5: 2 | D5: 364500 | E5: 0.01834862385 | F5: 0.01189516046
B6: First American Title | C6: 2 | D6: 364500 | E6: 0.01834862385 | F6: 0.01189516046
A8: BAY EQUITY LLC | C8: 1 | D8: 268000 | E8: 0.009174311927 | F8: 0.008745961601
B9: Ticor Title | C9: 1 | D9: 268000 | E9: 0.009174311927 | F9: 0.008745961601
A11: CALIBER HOME LOANS INC | C11: 1 | D11: 510400 | E11: 0.009174311927 | F11: 0.01665648806
B12: Western Title | C12: 1 | D12: 510400 | E12: 0.009174311927 | F12: 0.01665648806
A14: CITY NATIONAL BANK | C14: 2 | D14: 395000 | E14: 0.01834862385 | F14: 0.01289050311
B15: First Centennial Title | C15: 2 | D15: 395000 | E15: 0.01834862385 | F15: 0.01289050311
A17: FINANCE OF AMERICA MORTGAGE LLC | C17: 6 | D17: 1819093 | E17: 0.05504587156 | F17: 0.05936461764
B18: Ticor Title | C18: 5 | D18: 1549093 | E18: 0.04587155963 | F18: 0.05055338767
B19: Western Title | C19: 1 | D19: 270000 | E19: 0.009174311927 | F19: 0.008811229971
A21: GREATER NEVADA MORTGAGE | C21: 14 | D21: 3737600 | E21: 0.128440367 | F21: 0.1219735302
B22: First American Title | C22: 1 | D22: 314500 | E22: 0.009174311927 | F22: 0.01026345121
B23: First Centennial Title | C23: 3 | D23: 731100 | E23: 0.02752293578 | F23: 0.02385885271
B24: Ticor Title | C24: 8 | D24: 1950000 | E24: 0.07339449541 | F24: 0.0636366609
B25: Western Title | C25: 2 | D25: 742000 | E25: 0.01834862385 | F25: 0.02421456533
A27: GUARANTEED RATE INC | C27: 1 | D27: 238000 | E27: 0.009174311927 | F27: 0.007766936049
B28: First Centennial Title | C28: 1 | D28: 238000 | E28: 0.009174311927 | F28: 0.007766936049
A30: GUILD MORTGAGE COMPANY | C30: 18 | D30: 4373563 | E30: 0.1651376147 | F30: 0.1427276644
B31: First Centennial Title | C31: 2 | D31: 459000 | E31: 0.01834862385 | F31: 0.01497909095
B32: Ticor Title | C32: 7 | D32: 1731555 | E32: 0.06422018349 | F32: 0.05650788634
B33: Western Title | C33: 9 | D33: 2183008 | E33: 0.08256880734 | F33: 0.0712406871
A35: MOUNTAIN AMERICA FEDERAL CREDIT UNION | C35: 1 | D35: 231500 | E35: 0.009174311927 | F35: 0.007554813846
B36: First American Title | C36: 1 | D36: 231500 | E36: 0.009174311927 | F36: 0.007554813846
A38: NEVADA STATE BANK | C38: 1 | D38: 233000 | E38: 0.009174311927 | F38: 0.007603765123
B39: Western Title | C39: 1 | D39: 233000 | E39: 0.009174311927 | F39: 0.007603765123
A41: NEW AMERICAN FUNDING | C41: 3 | D41: 946000 | E41: 0.02752293578 | F41: 0.03087193908
B42: North American Title | C42: 1 | D42: 271000 | E42: 0.009174311927 | F42: 0.008843864156
B43: Western Title | C43: 2 | D43: 675000 | E43: 0.01834862385 | F43: 0.02202807493
A45: ON Q FINANCIAL INC | C45: 2 | D45: 485000 | E45: 0.01834862385 | F45: 0.01582757976
B46: First Centennial Title | C46: 1 | D46: 360000 | E46: 0.009174311927 | F46: 0.01174830663
B47: Western Title | C47: 1 | D47: 125000 | E47: 0.009174311927 | F47: 0.004079273135
A49: PRIMELENDING | C49: 11 | D49: 3897861 | E49: 0.1009174312 | F49: 0.1272035173
B50: First American Title | C50: 1 | D50: 209000 | E50: 0.009174311927 | F50: 0.006820544682
B51: Ticor Title | C51: 4 | D51: 1640440 | E51: 0.03669724771 | F51: 0.05353442257
B52: Western Title | C52: 6 | D52: 2048421 | E52: 0.05504587156 | F52: 0.06684855003
A54: UNITED FEDERAL CREDIT UNION | C54: 4 | D54: 761350 | E54: 0.03669724771 | F54: 0.02484603681
B55: First Centennial Title | C55: 3 | D55: 610350 | E55: 0.02752293578 | F55: 0.01991827486
B56: Ticor Title | C56: 1 | D56: 151000 | E56: 0.009174311927 | F56: 0.004927761947
A58: UNITED WHOLESALE MORTGAGE | C58: 1 | D58: 75000 | E58: 0.009174311927 | F58: 0.002447563881
B59: Western Title | C59: 1 | D59: 75000 | E59: 0.009174311927 | F59: 0.002447563881
A61: US BANK NA | C61: 1 | D61: 196800 | E61: 0.009174311927 | F61: 0.006422407624
B62: First American Title | C62: 1 | D62: 196800 | E62: 0.009174311927 | F62: 0.006422407624
A64: WELLS FARGO BANK NA | C64: 6 | D64: 1136233 | E64: 0.05504587156 | F64: 0.03708003801
B65: Acme Title and Escrow | C65: 1 | D65: 30500 | E65: 0.009174311927 | F65: 0.0009953426449
B66: First Centennial Title | C66: 2 | D66: 322000 | E66: 0.01834862385 | F66: 0.0105082076
B67: Ticor Title | C67: 1 | D67: 205000 | E67: 0.009174311927 | F67: 0.006690007941
B68: Western Title | C68: 1 | D68: 403733 | E68: 0.009174311927 | F68: 0.01317549744
B69: Stewart Title | C69: 1 | D69: 175000 | E69: 0.009174311927 | F69: 0.005710982389
A71: PRIMARY RESIDENTIAL MORTGAGE INC | C71: 1 | D71: 212897 | E71: 0.009174311927 | F71: 0.006947720101
B72: North American Title | C72: 1 | D72: 212897 | E72: 0.009174311927 | F72: 0.006947720101
A74: CALCON MUTUAL MORTGAGE LLC DBA; ONETRUST HOME LOANS | C74: 1 | D74: 241000 | E74: 0.009174311927 | F74: 0.007864838604
B75: Acme Title and Escrow | C75: 1 | D75: 241000 | E75: 0.009174311927 | F75: 0.007864838604
A77: NAVY FEDERAL CREDIT UNION | C77: 1 | D77: 244157 | E77: 0.009174311927 | F77: 0.007967864726
B78: First American Title | C78: 1 | D78: 244157 | E78: 0.009174311927 | F78: 0.007967864726
A80: LANTZMAN MANAGEMENT INC | C80: 1 | D80: 600000 | E80: 0.009174311927 | F80: 0.01958051105
B81: First Centennial Title | C81: 1 | D81: 600000 | E81: 0.009174311927 | F81: 0.01958051105
A83: MOVEMENT MORTGAGE LLC | C83: 5 | D83: 1860370 | E83: 0.04587155963 | F83: 0.0607116589
B84: First Centennial Title | C84: 1 | D84: 267370 | E84: 0.009174311927 | F84: 0.008725402065
B85: North American Title | C85: 1 | D85: 715000 | E85: 0.009174311927 | F85: 0.02333344233
B86: Ticor Title | C86: 2 | D86: 660000 | E86: 0.01834862385 | F86: 0.02153856215
B87: Western Title | C87: 1 | D87: 218000 | E87: 0.009174311927 | F87: 0.007114252347
A89: CALCON MUTUAL MORTGAGE LLC | C89: 1 | D89: 253500 | E89: 0.009174311927 | F89: 0.008272765918
B90: First Centennial Title | C90: 1 | D90: 253500 | E90: 0.009174311927 | F90: 0.008272765918
A92: ELEVEN MORTGAGE | C92: 1 | D92: 361000 | E92: 0.009174311927 | F92: 0.01178094081
B93: First Centennial Title | C93: 1 | D93: 361000 | E93: 0.009174311927 | F93: 0.01178094081
A95: HOME POINT FINANCIAL CORPORATION | C95: 1 | D95: 465000 | E95: 0.009174311927 | F95: 0.01517489606
B96: First Centennial Title | C96: 1 | D96: 465000 | E96: 0.009174311927 | F96: 0.01517489606
A98: MIDWEST EQUITY MORTGAGE | C98: 1 | D98: 356000 | E98: 0.009174311927 | F98: 0.01161776989
B99: First Centennial Title | C99: 1 | D99: 356000 | E99: 0.009174311927 | F99: 0.01161776989
A101: SUPREME LENDING | C101: 1 | D101: 315000 | E101: 0.009174311927 | F101: 0.0102797683
B102: First Centennial Title | C102: 1 | D102: 315000 | E102: 0.009174311927 | F102: 0.0102797683
A104: FLAGSTAR BANK | C104: 2 | D104: 443400 | E104: 0.01834862385 | F104: 0.01446999766
B105: First Centennial Title | C105: 1 | D105: 226800 | E105: 0.009174311927 | F105: 0.007401433176
B106: Western Title | C106: 1 | D106: 216600 | E106: 0.009174311927 | F106: 0.007068564488
A108: LENDUS LLC | C108: 1 | D108: 200000 | E108: 0.009174311927 | F108: 0.006526837016
B109: First Centennial Title | C109: 1 | D109: 200000 | E109: 0.009174311927 | F109: 0.006526837016
A111: FIRST BANK | C111: 1 | D111: 313600 | E111: 0.009174311927 | F111: 0.01023408044
B112: Ticor Title | C112: 1 | D112: 313600 | E112: 0.009174311927 | F112: 0.01023408044
A114: QUICKEN LOANS | C114: 1 | D114: 170000 | E114: 0.009174311927 | F114: 0.005547811463
B115: Ticor Title | C115: 1 | D115: 170000 | E115: 0.009174311927 | F115: 0.005547811463
A117: MUFG UNION BANK | C117: 1 | D117: 32700 | E117: 0.009174311927 | F117: 0.001067137852
B118: Ticor Title | C118: 1 | D118: 32700 | E118: 0.009174311927 | F118: 0.001067137852
A120: UNITED WHOLESALE MORTAGE | C120: 1 | D120: 187000 | E120: 0.009174311927 | F120: 0.00610259261
B121: Ticor Title | C121: 1 | D121: 187000 | E121: 0.009174311927 | F121: 0.00610259261
A123: ORIX REAL ESTATE CAPITAL LLC | C123: 1 | D123: 1995000 | E123: 0.009174311927 | F123: 0.06510519923
B124: Ticor Title | C124: 1 | D124: 1995000 | E124: 0.009174311927 | F124: 0.06510519923
A126: PRIMARY RESIDENTIAL MORTGAGE | C126: 1 | D126: 248000 | E126: 0.009174311927 | F126: 0.0080932779
B127: Ticor Title | C127: 1 | D127: 248000 | E127: 0.009174311927 | F127: 0.0080932779
A129: SIERRA PACIFIC MORTGAGE COMPANY | C129: 1 | D129: 301500 | E129: 0.009174311927 | F129: 0.009839206801
B130: Ticor Title | C130: 1 | D130: 301500 | E130: 0.009174311927 | F130: 0.009839206801
A132: OMEGA MORTGAGE GROUP | C132: 1 | D132: 277000 | E132: 0.009174311927 | F132: 0.009039669267
B133: Toiyabe Title | C133: 1 | D133: 277000 | E133: 0.009174311927 | F133: 0.009039669267
A135: EL DORADO SAVINGS BANK | C135: 1 | D135: 150000 | E135: 0.009174311927 | F135: 0.004895127762
B136: Western Title | C136: 1 | D136: 150000 | E136: 0.009174311927 | F136: 0.004895127762
A138: DIGNIFIED HOME LOANS LLC | C138: 2 | D138: 436108 | E138: 0.01834862385 | F138: 0.01423202919
B139: Western Title | C139: 2 | D139: 436108 | E139: 0.01834862385 | F139: 0.01423202919
A141: ZIONS BANCORPORATION DBA; NEVADA STATE BANK | C141: 1 | D141: 312000 | E141: 0.009174311927 | F141: 0.01018186574
B142: Western Title | C142: 1 | D142: 312000 | E142: 0.009174311927 | F142: 0.01018186574
A144: CALIBER HOME LOANS | C144: 1 | D144: 173000 | E144: 0.009174311927 | F144: 0.005645714019
B145: Western Title | C145: 1 | D145: 173000 | E145: 0.009174311927 | F145: 0.005645714019
A147: BROKER SOLUTIONS INC DBA; NEW AMERICAN FUNDING | C147: 1 | D147: 325918 | E147: 0.009174311927 | F147: 0.01063606833
B148: Western Title | C148: 1 | D148: 325918 | E148: 0.009174311927 | F148: 0.01063606833
A150: PROVIDENT FUNDING ASSOCIATES | C150: 1 | D150: 217000 | E150: 0.009174311927 | F150: 0.007081618162
B151: Western Title | C151: 1 | D151: 217000 | E151: 0.009174311927 | F151: 0.007081618162
A153: NEVADA RURAL HOUSING AUTHORITY | C153: 1 | D153: 8664 | E153: 0.009174311927 | F153: 0.0002827425795
B154: Western Title | C154: 1 | D154: 8664 | E154: 0.009174311927 | F154: 0.0002827425795
A156: PROVIDENT FUNDING ASSOC | C156: 1 | D156: 274000 | E156: 0.009174311927 | F156: 0.008941766712
B157: Western Title | C157: 1 | D157: 274000 | E157: 0.009174311927 | F157: 0.008941766712
A159: Grand Total | C159: 109 | D159: 30642714 | E159: 1 | F159: 1

Sheet SALES_LIST (hidden)
A1: FULLNAME | B1: RECBY | C1: BRANCH | D1: EO | E1: PROPTYPE | F1: DOCNUM | G1: AMOUNT | H1: SUB | I1: INSURED | J1: RECDATE | K1: Last Row: | L1: 58
A2: Calatlantic Title West | B2: CAL | C2: MCCARRAN | D2: LH | E2: SINGLE FAM RES. | F2: 506523 | G2: 415238 | H2: YES | I2: YES | J2: 2020-05-29
A3: Calatlantic Title West | B3: CAL | C3: MCCARRAN | D3: LH | E3: SINGLE FAM RES. | F3: 505745 | G3: 527960 | H3: YES | I3: YES | J3: 2020-05-01
A4: Calatlantic Title West | B4: CAL | C4: MCCARRAN | D4: LH | E4: SINGLE FAM RES. | F4: 506303 | G4: 412990 | H4: YES | I4: YES | J4: 2020-05-21
A5: Calatlantic Title West | B5: CAL | C5: MCCARRAN | D5: LH | E5: SINGLE FAM RES. | F5: 506498 | G5: 486982 | H5: YES | I5: YES | J5: 2020-05-28
A6: Calatlantic Title West | B6: CAL | C6: MCCARRAN | D6: LH | E6: SINGLE FAM RES. | F6: 505896 | G6: 420650 | H6: YES | I6: YES | J6: 2020-05-07
A7: Calatlantic Title West | B7: CAL | C7: MCCARRAN | D7: LH | E7: SINGLE FAM RES. | F7: 506571 | G7: 561250 | H7: YES | I7: YES | J7: 2020-05-29
A8: Calatlantic Title West | B8: CAL | C8: HAMMILL | D8: LH | E8: SINGLE FAM RES. | F8: 506073 | G8: 479935 | H8: YES | I8: YES | J8: 2020-05-14
A9: Calatlantic Title West | B9: CAL | C9: MCCARRAN | D9: LH | E9: SINGLE FAM RES. | F9: 506005 | G9: 523121 | H9: YES | I9: YES | J9: 2020-05-11
A10: First American Title | B10: FA | C10: PHOENIX, AZ | D10: NCS | E10: COMMERCIAL | F10: 506146 | G10: 3850000 | H10: NO | I10: YES | J10: 2020-05-15
A11: First American Title | B11: FA | C11: MINDEN | D11: MK | E11: SINGLE FAM RES. | F11: 506334 | G11: 475000 | H11: NO | I11: YES | J11: 2020-05-22
A12: First Centennial Title | B12: FC | C12: CARSON CITY | D12: 18 | E12: SINGLE FAM RES. | F12: 506261 | G12: 342000 | H12: NO | I12: YES | J12: 2020-05-20
A13: First Centennial Title | B13: FC | C13: CARSON CITY | D13: 18 | E13: SINGLE FAM RES. | F13: 506494 | G13: 502500 | H13: NO | I13: YES | J13: 2020-05-28
A14: First Centennial Title | B14: FC | C14: CARSONCITY | D14: 17 | E14: SINGLE FAM RES. | F14: 505736 | G14: 325000 | H14: NO | I14: YES | J14: 2020-05-01
A15: First Centennial Title | B15: FC | C15: CARSON CITY | D15: 23 | E15: SINGLE FAM RES. | F15: 506187 | G15: 197000 | H15: NO | I15: YES | J15: 2020-05-18
A16: First Centennial Title | B16: FC | C16: CARSON CITY | D16: 17 | E16: SINGLE FAM RES. | F16: 505837 | G16: 308691 | H16: NO | I16: YES | J16: 2020-05-06
A17: First Centennial Title | B17: FC | C17: RIDGEVIEW | D17: 9 | E17: SINGLE FAM RES. | F17: 506034 | G17: 277200 | H17: NO | I17: YES | J17: 2020-05-12
A18: First Centennial Title | B18: FC | C18: RIDGEVIEW | D18: 9 | E18: SINGLE FAM RES. | F18: 506058 | G18: 369500 | H18: NO | I18: YES | J18: 2020-05-13
A19: First Centennial Title | B19: FC | C19: CARSON CITY | D19: 18 | E19: SINGLE FAM RES. | F19: 505787 | G19: 540000 | H19: NO | I19: YES | J19: 2020-05-04
A20: First Centennial Title | B20: FC | C20: RIDGEVIEW | D20: 9 | E20: CONDO/TWNHSE | F20: 506310 | G20: 198000 | H20: NO | I20: YES | J20: 2020-05-21
A21: North American Title | B21: NA | C21: HAMMILL | D21: UNK | E21: VACANT LAND | F21: 505929 | G21: 80000 | H21: NO | I21: YES | J21: 2020-05-08
A22: North American Title | B22: NA | C22: HAMMILL | D22: UNK | E22: MOBILE HOME | F22: 506149 | G22: 274000 | H22: NO | I22: YES | J22: 2020-05-15
A23: Signature Title | B23: SIG | C23: MINDEN | D23: NF | E23: SINGLE FAM RES. | F23: 506562 | G23: 385000 | H23: NO | I23: YES | J23: 2020-05-29
A24: Stewart Title | B24: ST | C24: PROFESSIONAL | D24: UNK | E24: SINGLE FAM RES. | F24: 506306 | G24: 390000 | H24: NO | I24: YES | J24: 2020-05-21
A25: Stewart Title | B25: ST | C25: PLUMB | D25: UNK | E25: SINGLE FAM RES. | F25: 506436 | G25: 520000 | H25: NO | I25: YES | J25: 2020-05-27
A26: Ticor Title | B26: TI | C26: LAKESIDE | D26: SL | E26: SINGLE FAM RES. | F26: 506141 | G26: 244000 | H26: NO | I26: YES | J26: 2020-05-15
A27: Ticor Title | B27: TI | C27: KIETZKE | D27: AE | E27: SINGLE FAM RES. | F27: 506031 | G27: 285287 | H27: YES | I27: YES | J27: 2020-05-12
A28: Ticor Title | B28: TI | C28: KIETZKE | D28: CD | E28: COMMERCIAL | F28: 506573 | G28: 891875 | H28: NO | I28: YES | J28: 2020-05-29
A29: Ticor Title | B29: TI | C29: CARSON CITY | D29: DC | E29: 2-4 PLEX | F29: 506360 | G29: 294900 | H29: NO | I29: YES | J29: 2020-05-22
A30: Ticor Title | B30: TI | C30: CARSON CITY | D30: DKD | E30: VACANT LAND | F30: 506575 | G30: 325000 | H30: NO | I30: YES | J30: 2020-05-29
A31: Ticor Title | B31: TI | C31: CARSON CITY | D31: DKD | E31: SINGLE FAM RES. | F31: 506566 | G31: 300000 | H31: NO | I31: YES | J31: 2020-05-29
A32: Ticor Title | B32: TI | C32: CARSON CITY | D32: DC | E32: SINGLE FAM RES. | F32: 506399 | G32: 580000 | H32: NO | I32: YES | J32: 2020-05-26
A33: Ticor Title | B33: TI | C33: CARSON CITY | D33: DKD | E33: SINGLE FAM RES. | F33: 506438 | G33: 985000 | H33: NO | I33: YES | J33: 2020-05-27
A34: Ticor Title | B34: TI | C34: CARSON CITY | D34: DKD | E34: SINGLE FAM RES. | F34: 506447 | G34: 530000 | H34: NO | I34: YES | J34: 2020-05-27
A35: Ticor Title | B35: TI | C35: CARSON CITY | D35: DKD | E35: SINGLE FAM RES. | F35: 506455 | G35: 119800 | H35: NO | I35: YES | J35: 2020-05-28
A36: Ticor Title | B36: TI | C36: CARSON CITY | D36: DC | E36: MOBILE HOME | F36: 505845 | G36: 180000 | H36: NO | I36: YES | J36: 2020-05-06
A37: Ticor Title | B37: TI | C37: CARSON CITY | D37: DKD | E37: SINGLE FAM RES. | F37: 505856 | G37: 391900 | H37: NO | I37: YES | J37: 2020-05-06
A38: Ticor Title | B38: TI | C38: CARSONCITY | D38: DC | E38: SINGLE FAM RES. | F38: 505734 | G38: 475000 | H38: NO | I38: YES | J38: 2020-05-01
A39: Ticor Title | B39: TI | C39: CARSON CITY | D39: DKD | E39: SINGLE FAM RES. | F39: 506336 | G39: 350000 | H39: NO | I39: YES | J39: 2020-05-22
A40: Ticor Title | B40: TI | C40: CARSON CITY | D40: DKD | E40: SINGLE FAM RES. | F40: 506564 | G40: 275000 | H40: NO | I40: YES | J40: 2020-05-29
A41: Toiyabe Title | B41: TT | C41: MCCARRAN | D41: JH | E41: SINGLE FAM RES. | F41: 505951 | G41: 320000 | H41: NO | I41: YES | J41: 2020-05-08
A42: Toiyabe Title | B42: TT | C42: MCCARRAN | D42: JH | E42: SINGLE FAM RES. | F42: 506200 | G42: 310000 | H42: NO | I42: YES | J42: 2020-05-19
A43: Toiyabe Title | B43: TT | C43: MCCARRAN | D43: JH | E43: SINGLE FAM RES. | F43: 505739 | G43: 724900 | H43: NO | I43: YES | J43: 2020-05-01
A44: Western Title | B44: WE | C44: CARSON CITY | D44: KDJ | E44: SINGLE FAM RES. | F44: 506056 | G44: 705128 | H44: YES | I44: YES | J44: 2020-05-13
A45: Western Title | B45: WE | C45: CARSON CITY | D45: KDJ | E45: CONDO/TWNHSE | F45: 506431 | G45: 143000 | H45: NO | I45: YES | J45: 2020-05-27
A46: Western Title | B46: WE | C46: GARDNERVILLE | D46: WLD | E46: SINGLE FAM RES. | F46: 506245 | G46: 370000 | H46: NO | I46: YES | J46: 2020-05-20
A47: Western Title | B47: WE | C47: KIETZKE | D47: SAB | E47: SINGLE FAM RES. | F47: 506577 | G47: 228000 | H47: NO | I47: YES | J47: 2020-05-29
A48: Western Title | B48: WE | C48: CARSON CITY | D48: KDJ | E48: SINGLE FAM RES. | F48: 506484 | G48: 452236 | H48: YES | I48: YES | J48: 2020-05-28
A49: Western Title | B49: WE | C49: CARSON CITY | D49: AMG | E49: SINGLE FAM RES. | F49: 506439 | G49: 305000 | H49: NO | I49: YES | J49: 2020-05-27
A50: Western Title | B50: WE | C50: CARSON CITY | D50: AMG | E50: SINGLE FAM RES. | F50: 506354 | G50: 330000 | H50: NO | I50: YES | J50: 2020-05-22
A51: Western Title | B51: WE | C51: CARSON CITY | D51: KDJ | E51: SINGLE FAM RES. | F51: 506582 | G51: 325000 | H51: NO | I51: YES | J51: 2020-05-29
A52: Western Title | B52: WE | C52: SOUTH KIETZKE | D52: CRF | E52: SINGLE FAM RES. | F52: 506258 | G52: 349900 | H52: NO | I52: YES | J52: 2020-05-20
A53: Western Title | B53: WE | C53: CARSON CITY | D53: AMG | E53: CONDO/TWNHSE | F53: 506170 | G53: 280000 | H53: NO | I53: YES | J53: 2020-05-18
A54: Western Title | B54: WE | C54: CARSON CITY | D54: KDJ | E54: SINGLE FAM RES. | F54: 506088 | G54: 370000 | H54: NO | I54: YES | J54: 2020-05-14
A55: Western Title | B55: WE | C55: KIETZKE | D55: JMS | E55: SINGLE FAM RES. | F55: 506059 | G55: 365000 | H55: NO | I55: YES | J55: 2020-05-13
A56: Western Title | B56: WE | C56: SOUTH KIETZKE | D56: CRF | E56: SINGLE FAM RES. | F56: 506046 | G56: 549000 | H56: NO | I56: YES | J56: 2020-05-13
A57: Western Title | B57: WE | C57: CARSON CITY | D57: KDJ | E57: SINGLE FAM RES. | F57: 505944 | G57: 335000 | H57: NO | I57: YES | J57: 2020-05-08
A58: Western Title | B58: WE | C58: CARSON CITY | D58: AMG | E58: SINGLE FAM RES. | F58: 506067 | G58: 400000 | H58: NO | I58: YES | J58: 2020-05-13

Sheet LOANS_LIST (hidden)
A1: FULLNAME | B1: RECBY | C1: TYPELOAN | D1: APN | E1: DOCNUM | F1: AMOUNT | G1: RECDATE | H1: LENDER | L1: 110
A2: Acme Title and Escrow | B2: ACT | C2: CONVENTIONAL | D2: 010-412-09 | E2: 506065 | F2: 241000 | G2: 2020-05-13 | H2: CALCON MUTUAL MORTGAGE LLC DBA; ONETRUST HOME LOANS
A3: Acme Title and Escrow | B3: ACT | C3: CONVENTIONAL | D3: 002-133-03 | E3: 506106 | F3: 30500 | G3: 2020-05-15 | H3: WELLS FARGO BANK NA
A4: First American Title | B4: FA | C4: CONVENTIONAL | D4: 003-181-02 | E4: 506029 | F4: 176500 | G4: 2020-05-12 | H4: BANK OF THE WEST
A5: First American Title | B5: FA | C5: CONVENTIONAL | D5: 010-411-25 | E5: 506066 | F5: 188000 | G5: 2020-05-13 | H5: BANK OF THE WEST
A6: First American Title | B6: FA | C6: CONVENTIONAL | D6: 010-411-03 | E6: 506002 | F6: 231500 | G6: 2020-05-11 | H6: MOUNTAIN AMERICA FEDERAL CREDIT UNION
A7: First American Title | B7: FA | C7: CONVENTIONAL | D7: 008-753-15 | E7: 505930 | F7: 314500 | G7: 2020-05-08 | H7: GREATER NEVADA MORTGAGE
A8: First American Title | B8: FA | C8: VA | D8: 001-123-22 | E8: 506045 | F8: 244157 | G8: 2020-05-13 | H8: NAVY FEDERAL CREDIT UNION
A9: First American Title | B9: FA | C9: CONVENTIONAL | D9: 010-424-08 | E9: 506330 | F9: 196800 | G9: 2020-05-22 | H9: US BANK NA
A10: First American Title | B10: FA | C10: CONVENTIONAL | D10: 008-323-26 | E10: 505925 | F10: 209000 | G10: 2020-05-08 | H10: PRIMELENDING
A11: First Centennial Title | B11: FC | C11: HARD MONEY | D11: 007-562-08 | E11: 505771 | F11: 600000 | G11: 2020-05-04 | H11: LANTZMAN MANAGEMENT INC
A12: First Centennial Title | B12: FC | C12: CONVENTIONAL | D12: 009-813-11 | E12: 506238 | F12: 227000 | G12: 2020-05-20 | H12: WELLS FARGO BANK NA
A13: First Centennial Title | B13: FC | C13: CREDIT LINE | D13: 007-293-02 | E13: 505768 | F13: 295000 | G13: 2020-05-04 | H13: CITY NATIONAL BANK
A14: First Centennial Title | B14: FC | C14: FHA | D14: 001-103-04 | E14: 505732 | F14: 267370 | G14: 2020-05-01 | H14: MOVEMENT MORTGAGE LLC
A15: First Centennial Title | B15: FC | C15: CONVENTIONAL | D15: 001-084-03 | E15: 505769 | F15: 189000 | G15: 2020-05-04 | H15: UNITED FEDERAL CREDIT UNION
A16: First Centennial Title | B16: FC | C16: CONVENTIONAL | D16: 007-564-26 | E16: 506210 | F16: 360000 | G16: 2020-05-19 | H16: ON Q FINANCIAL INC
A17: First Centennial Title | B17: FC | C17: CONVENTIONAL | D17: 001-041-13 | E17: 505927 | F17: 253500 | G17: 2020-05-08 | H17: CALCON MUTUAL MORTGAGE LLC
A18: First Centennial Title | B18: FC | C18: CONVENTIONAL | D18: 003-059-04 | E18: 505921 | F18: 168250 | G18: 2020-05-08 | H18: UNITED FEDERAL CREDIT UNION
A19: First Centennial Title | B19: FC | C19: CONVENTIONAL | D19: 010-641-21 | E19: 506163 | F19: 361000 | G19: 2020-05-18 | H19: ELEVEN MORTGAGE
A20: First Centennial Title | B20: FC | C20: CREDIT LINE | D20: 003-335-07 | E20: 505919 | F20: 100000 | G20: 2020-05-08 | H20: CITY NATIONAL BANK
A21: First Centennial Title | B21: FC | C21: CONVENTIONAL | D21: 009-491-02 | E21: 506463 | F21: 125000 | G21: 2020-05-28 | H21: GREATER NEVADA MORTGAGE
A22: First Centennial Title | B22: FC | C22: CONVENTIONAL | D22: 010-192-10 | E22: 506430 | F22: 465000 | G22: 2020-05-27 | H22: HOME POINT FINANCIAL CORPORATION
A23: First Centennial Title | B23: FC | C23: CONVENTIONAL | D23: 007-291-03 | E23: 506358 | F23: 356000 | G23: 2020-05-22 | H23: MIDWEST EQUITY MORTGAGE
A24: First Centennial Title | B24: FC | C24: CONVENTIONAL | D24: 010-592-05 | E24: 506382 | F24: 238000 | G24: 2020-05-26 | H24: GUARANTEED RATE INC
A25: First Centennial Title | B25: FC | C25: CONVENTIONAL | D25: 003-041-21 | E25: 506383 | F25: 199000 | G25: 2020-05-26 | H25: GUILD MORTGAGE COMPANY
A26: First Centennial Title | B26: FC | C26: CONVENTIONAL | D26: 001-044-03 | E26: 506384 | F26: 244000 | G26: 2020-05-26 | H26: GREATER NEVADA MORTGAGE
A27: First Centennial Title | B27: FC | C27: CONVENTIONAL | D27: 003-131-09 | E27: 506042 | F27: 253100 | G27: 2020-05-13 | H27: UNITED FEDERAL CREDIT UNION
A28: First Centennial Title | B28: FC | C28: CONVENTIONAL | D28: 007-473-07 | E28: 506346 | F28: 362100 | G28: 2020-05-22 | H28: GREATER NEVADA MORTGAGE
A29: First Centennial Title | B29: FC | C29: CONVENTIONAL | D29: 001-143-14 | E29: 506452 | F29: 95000 | G29: 2020-05-27 | H29: WELLS FARGO BANK NA
A30: First Centennial Title | B30: FC | C30: CONVENTIONAL | D30: 010-591-04 | E30: 506481 | F30: 315000 | G30: 2020-05-28 | H30: SUPREME LENDING
A31: First Centennial Title | B31: FC | C31: CONVENTIONAL | D31: 010-362-25 | E31: 506237 | F31: 226800 | G31: 2020-05-20 | H31: FLAGSTAR BANK
A32: First Centennial Title | B32: FC | C32: CONVENTIONAL | D32: 003-193-03 | E32: 506223 | F32: 260000 | G32: 2020-05-19 | H32: GUILD MORTGAGE COMPANY
A33: First Centennial Title | B33: FC | C33: CONVENTIONAL | D33: 002-568-02 | E33: 506033 | F33: 200000 | G33: 2020-05-12 | H33: LENDUS LLC
A34: North American Title | B34: NA | C34: CONVENTIONAL | D34: 007-315-02 | E34: 506347 | F34: 715000 | G34: 2020-05-22 | H34: MOVEMENT MORTGAGE LLC
A35: North American Title | B35: NA | C35: VA | D35: 010-402-28 | E35: 506115 | F35: 212897 | G35: 2020-05-15 | H35: PRIMARY RESIDENTIAL MORTGAGE INC
A36: North American Title | B36: NA | C36: CONVENTIONAL | D36: 002-773-03 | E36: 505931 | F36: 271000 | G36: 2020-05-08 | H36: NEW AMERICAN FUNDING
A37: Stewart Title | B37: ST | C37: CONVENTIONAL | D37: 007-273-02 | E37: 506233 | F37: 175000 | G37: 2020-05-20 | H37: WELLS FARGO BANK NA
A38: Ticor Title | B38: TI | C38: CONVENTIONAL | D38: 010-503-28 | E38: 505854 | F38: 320000 | G38: 2020-05-06 | H38: MOVEMENT MORTGAGE LLC
A39: Ticor Title | B39: TI | C39: CONVENTIONAL | D39: 010-512-21 | E39: 506154 | F39: 313600 | G39: 2020-05-15 | H39: FIRST BANK
A40: Ticor Title | B40: TI | C40: CONVENTIONAL | D40: 009-645-05 | E40: 506496 | F40: 295000 | G40: 2020-05-28 | H40: FINANCE OF AMERICA MORTGAGE LLC
A41: Ticor Title | B41: TI | C41: CONVENTIONAL | D41: 009-533-05 | E41: 506412 | F41: 162300 | G41: 2020-05-26 | H41: GUILD MORTGAGE COMPANY
A42: Ticor Title | B42: TI | C42: CONVENTIONAL | D42: 003-052-16 | E42: 506024 | F42: 260500 | G42: 2020-05-12 | H42: PRIMELENDING
A43: Ticor Title | B43: TI | C43: VA | D43: 007-642-18 | E43: 505772 | F43: 611040 | G43: 2020-05-04 | H43: PRIMELENDING
A44: Ticor Title | B44: TI | C44: CONVENTIONAL | D44: 002-292-03 | E44: 505848 | F44: 151000 | G44: 2020-05-06 | H44: GREATER NEVADA MORTGAGE
A45: Ticor Title | B45: TI | C45: CONVENTIONAL | D45: 010-513-09 | E45: 505849 | F45: 259200 | G45: 2020-05-06 | H45: GREATER NEVADA MORTGAGE
A46: Ticor Title | B46: TI | C46: VA | D46: 010-561-01 | E46: 505851 | F46: 387000 | G46: 2020-05-06 | H46: FINANCE OF AMERICA MORTGAGE LLC
A47: Ticor Title | B47: TI | C47: CONVENTIONAL | D47: 001-223-07 | E47: 505933 | F47: 238400 | G47: 2020-05-08 | H47: GUILD MORTGAGE COMPANY
A48: Ticor Title | B48: TI | C48: CONVENTIONAL | D48: 009-494-12 | E48: 505936 | F48: 225000 | G48: 2020-05-08 | H48: GREATER NEVADA MORTGAGE
A49: Ticor Title | B49: TI | C49: CONVENTIONAL | D49: 010-593-03 | E49: 505974 | F49: 170000 | G49: 2020-05-11 | H49: QUICKEN LOANS
A50: Ticor Title | B50: TI | C50: CONVENTIONAL | D50: 008-332-18 | E50: 506010 | F50: 32700 | G50: 2020-05-11 | H50: MUFG UNION BANK
A51: Ticor Title | B51: TI | C51: CONVENTIONAL | D51: 007-571-02 | E51: 506112 | F51: 319910 | G51: 2020-05-15 | H51: GUILD MORTGAGE COMPANY
A52: Ticor Title | B52: TI | C52: CONVENTIONAL | D52: 003-345-04 | E52: 506214 | F52: 271500 | G52: 2020-05-19 | H52: FINANCE OF AMERICA MORTGAGE LLC
A53: Ticor Title | B53: TI | C53: CONVENTIONAL | D53: 004-301-05 | E53: 506183 | F53: 260000 | G53: 2020-05-18 | H53: GREATER NEVADA MORTGAGE
A54: Ticor Title | B54: TI | C54: CONVENTIONAL | D54: 007-233-11 | E54: 506468 | F54: 478593 | G54: 2020-05-28 | H54: FINANCE OF AMERICA MORTGAGE LLC
A55: Ticor Title | B55: TI | C55: CONVENTIONAL | D55: 009-067-05 | E55: 506402 | F55: 95300 | G55: 2020-05-26 | H55: GREATER NEVADA MORTGAGE
A56: Ticor Title | B56: TI | C56: CONVENTIONAL | D56: 010-711-04 | E56: 506003 | F56: 304300 | G56: 2020-05-11 | H56: GUILD MORTGAGE COMPANY
A57: Ticor Title | B57: TI | C57: CONVENTIONAL | D57: 004-361-22 | E57: 506502 | F57: 187000 | G57: 2020-05-28 | H57: UNITED WHOLESALE MORTAGE
A58: Ticor Title | B58: TI | C58: CONVENTIONAL | D58: 009-834-05 | E58: 506406 | F58: 340000 | G58: 2020-05-26 | H58: MOVEMENT MORTGAGE LLC
A59: Ticor Title | B59: TI | C59: COMMERCIAL | D59: 004-111-02 | E59: 506295 | F59: 1995000 | G59: 2020-05-21 | H59: ORIX REAL ESTATE CAPITAL LLC
A60: Ticor Title | B60: TI | C60: CONVENTIONAL | D60: 008-386-05 | E60: 506507 | F60: 248000 | G60: 2020-05-28 | H60: PRIMARY RESIDENTIAL MORTGAGE
A61: Ticor Title | B61: TI | C61: CONVENTIONAL | D61: 008-721-10 | E61: 506532 | F61: 205000 | G61: 2020-05-29 | H61: WELLS FARGO BANK NA
A62: Ticor Title | B62: TI | C62: CONVENTIONAL | D62: 010-143-12 | E62: 506574 | F62: 425400 | G62: 2020-05-29 | H62: PRIMELENDING
A63: Ticor Title | B63: TI | C63: CONVENTIONAL | D63: 007-541-07 | E63: 506243 | F63: 301500 | G63: 2020-05-20 | H63: SIERRA PACIFIC MORTGAGE COMPANY
A64: Ticor Title | B64: TI | C64: CONVENTIONAL | D64: 009-075-22 | E64: 506576 | F64: 250645 | G64: 2020-05-29 | H64: GUILD MORTGAGE COMPANY
A65: Ticor Title | B65: TI | C65: CONVENTIONAL | D65: 003-043-17 | E65: 506375 | F65: 343500 | G65: 2020-05-26 | H65: PRIMELENDING
A66: Ticor Title | B66: TI | C66: CONVENTIONAL | D66: 002-203-04 | E66: 506500 | F66: 117000 | G66: 2020-05-28 | H66: FINANCE OF AMERICA MORTGAGE LLC
A67: Ticor Title | B67: TI | C67: CONVENTIONAL | D67: 003-151-11 | E67: 506413 | F67: 268000 | G67: 2020-05-26 | H67: GUILD MORTGAGE COMPANY
A68: Ticor Title | B68: TI | C68: CONVENTIONAL | D68: 010-622-03 | E68: 506341 | F68: 444500 | G68: 2020-05-22 | H68: GREATER NEVADA MORTGAGE
A69: Ticor Title | B69: TI | C69: CONVENTIONAL | D69: 009-215-07 | E69: 506422 | F69: 151000 | G69: 2020-05-26 | H69: UNITED FEDERAL CREDIT UNION
A70: Ticor Title | B70: TI | C70: CONVENTIONAL | D70: 010-393-10 | E70: 506363 | F70: 188000 | G70: 2020-05-22 | H70: GUILD MORTGAGE COMPANY
A71: Ticor Title | B71: TI | C71: CONVENTIONAL | D71: 009-503-03 | E71: 506537 | F71: 179000 | G71: 2020-05-29 | H71: GREATER NEVADA MORTGAGE
A72: Ticor Title | B72: TI | C72: CONVENTIONAL | D72: 007-431-10 | E72: 506469 | F72: 336000 | G72: 2020-05-28 | H72: GREATER NEVADA MORTGAGE
A73: Ticor Title | B73: TI | C73: CONVENTIONAL | D73: 002-611-46 | E73: 506525 | F73: 268000 | G73: 2020-05-29 | H73: BAY EQUITY LLC
A74: Toiyabe Title | B74: TT | C74: CONVENTIONAL | D74: 002-582-03 | E74: 505938 | F74: 277000 | G74: 2020-05-08 | H74: OMEGA MORTGAGE GROUP
A75: Western Title | B75: WE | C75: CONVENTIONAL | D75: 010-186-06 | E75: 506076 | F75: 186000 | G75: 2020-05-14 | H75: GUILD MORTGAGE COMPANY
A76: Western Title | B76: WE | C76: CONVENTIONAL | D76: 010-392-04 | E76: 506110 | F76: 218000 | G76: 2020-05-15 | H76: MOVEMENT MORTGAGE LLC
A77: Western Title | B77: WE | C77: CONVENTIONAL | D77: 003-052-19 | E77: 506434 | F77: 210283 | G77: 2020-05-27 | H77: GUILD MORTGAGE COMPANY
A78: Western Title | B78: WE | C78: CONVENTIONAL | D78: 010-101-07 | E78: 506338 | F78: 229300 | G78: 2020-05-22 | H78: GUILD MORTGAGE COMPANY
A79: Western Title | B79: WE | C79: CREDIT LINE | D79: 008-795-07 | E79: 506023 | F79: 150000 | G79: 2020-05-12 | H79: EL DORADO SAVINGS BANK
A80: Western Title | B80: WE | C80: CONVENTIONAL | D80: 003-131-15 | E80: 506257 | F80: 174000 | G80: 2020-05-20 | H80: DIGNIFIED HOME LOANS LLC
A81: Western Title | B81: WE | C81: CONVENTIONAL | D81: 010-384-10 | E81: 506119 | F81: 136500 | G81: 2020-05-15 | H81: GUILD MORTGAGE COMPANY
A82: Western Title | B82: WE | C82: FHA | D82: 003-131-14 | E82: 506121 | F82: 262108 | G82: 2020-05-15 | H82: DIGNIFIED HOME LOANS LLC
A83: Western Title | B83: WE | C83: CONVENTIONAL | D83: 004-034-08 | E83: 506398 | F83: 125000 | G83: 2020-05-26 | H83: ON Q FINANCIAL INC
A84: Western Title | B84: WE | C84: VA | D84: 001-212-19 | E84: 506044 | F84: 368990 | G84: 2020-05-13 | H84: PRIMELENDING
A85: Western Title | B85: WE | C85: CONVENTIONAL | D85: 010-427-20 | E85: 506409 | F85: 261900 | G85: 2020-05-26 | H85: GUILD MORTGAGE COMPANY
A86: Western Title | B86: WE | C86: CONVENTIONAL | D86: 004-302-19 | E86: 506027 | F86: 312000 | G86: 2020-05-12 | H86: ZIONS BANCORPORATION DBA; NEVADA STATE BANK
A87: Western Title | B87: WE | C87: CONVENTIONAL | D87: 002-682-04 | E87: 506236 | F87: 173000 | G87: 2020-05-20 | H87: CALIBER HOME LOANS
A88: Western Title | B88: WE | C88: VA | D88: 003-141-01 | E88: 506025 | F88: 396931 | G88: 2020-05-12 | H88: PRIMELENDING
A89: Western Title | B89: WE | C89: CONVENTIONAL | D89: 007-362-10 | E89: 506252 | F89: 510400 | G89: 2020-05-20 | H89: CALIBER HOME LOANS INC
A90: Western Title | B90: WE | C90: CONVENTIONAL | D90: 009-656-23 | E90: 506421 | F90: 148265 | G90: 2020-05-26 | H90: GUILD MORTGAGE COMPANY
A91: Western Title | B91: WE | C91: CONVENTIONAL | D91: 002-433-16 | E91: 506441 | F91: 163535 | G91: 2020-05-27 | H91: GUILD MORTGAGE COMPANY
A92: Western Title | B92: WE | C92: CONVENTIONAL | D92: 010-032-32 | E92: 506217 | F92: 600000 | G92: 2020-05-19 | H92: GREATER NEVADA MORTGAGE
A93: Western Title | B93: WE | C93: CONVENTIONAL | D93: 003-335-09 | E93: 506459 | F93: 260000 | G93: 2020-05-28 | H93: PRIMELENDING
A94: Western Title | B94: WE | C94: VA | D94: 008-712-11 | E94: 505828 | F94: 435225 | G94: 2020-05-05 | H94: GUILD MORTGAGE COMPANY
A95: Western Title | B95: WE | C95: CONVENTIONAL | D95: 010-322-17 | E95: 505924 | F95: 270000 | G95: 2020-05-08 | H95: FINANCE OF AMERICA MORTGAGE LLC
A96: Western Title | B96: WE | C96: CONVENTIONAL | D96: 008-816-29 | E96: 506530 | F96: 381000 | G96: 2020-05-29 | H96: NEW AMERICAN FUNDING
A97: Western Title | B97: WE | C97: CONVENTIONAL | D97: 009-605-11 | E97: 505922 | F97: 233500 | G97: 2020-05-08 | H97: PRIMELENDING
A98: Western Title | B98: WE | C98: CONVENTIONAL | D98: 007-424-34 | E98: 505881 | F98: 294000 | G98: 2020-05-07 | H98: NEW AMERICAN FUNDING
A99: Western Title | B99: WE | C99: CONVENTIONAL | D99: 002-382-25 | E99: 506579 | F99: 216600 | G99: 2020-05-29 | H99: FLAGSTAR BANK
A100: Western Title | B100: WE | C100: CONVENTIONAL | D100: 009-832-57 | E100: 506113 | F100: 325918 | G100: 2020-05-15 | H100: BROKER SOLUTIONS INC DBA; NEW AMERICAN FUNDING
A101: Western Title | B101: WE | C101: CONVENTIONAL | D101: 008-892-14 | E101: 506460 | F101: 414000 | G101: 2020-05-28 | H101: PRIMELENDING
A102: Western Title | B102: WE | C102: CONVENTIONAL | D102: 010-263-07 | E102: 506190 | F102: 217000 | G102: 2020-05-18 | H102: PROVIDENT FUNDING ASSOCIATES
A103: Western Title | B103: WE | C103: CONVENTIONAL | D103: 007-221-17 | E103: 506470 | F103: 412000 | G103: 2020-05-28 | H103: GUILD MORTGAGE COMPANY
A104: Western Title | B104: WE | C104: CONVENTIONAL | D104: 003-352-13 | E104: 506239 | F104: 403733 | G104: 2020-05-20 | H104: WELLS FARGO BANK NA
A105: Western Title | B105: WE | C105: HOME EQUITY | D105: 002-382-25 | E105: 506580 | F105: 8664 | G105: 2020-05-29 | H105: NEVADA RURAL HOUSING AUTHORITY
A106: Western Title | B106: WE | C106: CONVENTIONAL | D106: 010-402-06 | E106: 505730 | F106: 75000 | G106: 2020-05-01 | H106: UNITED WHOLESALE MORTGAGE
A107: Western Title | B107: WE | C107: CONVENTIONAL | D107: 010-374-15 | E107: 506247 | F107: 274000 | G107: 2020-05-20 | H107: PROVIDENT FUNDING ASSOC
A108: Western Title | B108: WE | C108: CONVENTIONAL | D108: 010-704-17 | E108: 506206 | F108: 233000 | G108: 2020-05-19 | H108: NEVADA STATE BANK
A109: Western Title | B109: WE | C109: CONVENTIONAL | D109: 009-661-16 | E109: 506193 | F109: 142000 | G109: 2020-05-18 | H109: GREATER NEVADA MORTGAGE
A110: Western Title | B110: WE | C110: CONVENTIONAL | D110: 007-564-27 | E110: 506461 | F110: 375000 | G110: 2020-05-28 | H110: PRIMELENDING

Sheet SALESLOANSLIST (hidden)
A1: FULLNAME | B1: RECBY | C1: AMOUNT | D1: RECDATE | E1: DOCTYPE | L1: 167
A2: Acme Title and Escrow | B2: ACT | C2: 241000 | D2: 2020-05-13 | E2: DEED OF TRUST
A3: Acme Title and Escrow | B3: ACT | C3: 30500 | D3: 2020-05-15 | E3: DEED OF TRUST
A4: Calatlantic Title West | B4: CAL | C4: 420650 | D4: 2020-05-07 | E4: DEED SUBDIVIDER
A5: Calatlantic Title West | B5: CAL | C5: 486982 | D5: 2020-05-28 | E5: DEED SUBDIVIDER
A6: Calatlantic Title West | B6: CAL | C6: 523121 | D6: 2020-05-11 | E6: DEED SUBDIVIDER
A7: Calatlantic Title West | B7: CAL | C7: 412990 | D7: 2020-05-21 | E7: DEED SUBDIVIDER
A8: Calatlantic Title West | B8: CAL | C8: 415238 | D8: 2020-05-29 | E8: DEED SUBDIVIDER
A9: Calatlantic Title West | B9: CAL | C9: 561250 | D9: 2020-05-29 | E9: DEED SUBDIVIDER
A10: Calatlantic Title West | B10: CAL | C10: 479935 | D10: 2020-05-14 | E10: DEED SUBDIVIDER
A11: Calatlantic Title West | B11: CAL | C11: 527960 | D11: 2020-05-01 | E11: DEED SUBDIVIDER
A12: First American Title | B12: FA | C12: 244157 | D12: 2020-05-13 | E12: DEED OF TRUST
A13: First American Title | B13: FA | C13: 176500 | D13: 2020-05-12 | E13: DEED OF TRUST
A14: First American Title | B14: FA | C14: 475000 | D14: 2020-05-22 | E14: DEED
A15: First American Title | B15: FA | C15: 209000 | D15: 2020-05-08 | E15: DEED OF TRUST
A16: First American Title | B16: FA | C16: 188000 | D16: 2020-05-13 | E16: DEED OF TRUST
A17: First American Title | B17: FA | C17: 3850000 | D17: 2020-05-15 | E17: DEED
A18: First American Title | B18: FA | C18: 196800 | D18: 2020-05-22 | E18: DEED OF TRUST
A19: First American Title | B19: FA | C19: 231500 | D19: 2020-05-11 | E19: DEED OF TRUST
A20: First American Title | B20: FA | C20: 314500 | D20: 2020-05-08 | E20: DEED OF TRUST
A21: First Centennial Title | B21: FC | C21: 200000 | D21: 2020-05-12 | E21: DEED OF TRUST
A22: First Centennial Title | B22: FC | C22: 295000 | D22: 2020-05-04 | E22: DEED OF TRUST
A23: First Centennial Title | B23: FC | C23: 189000 | D23: 2020-05-04 | E23: DEED OF TRUST
A24: First Centennial Title | B24: FC | C24: 600000 | D24: 2020-05-04 | E24: DEED OF TRUST
A25: First Centennial Title | B25: FC | C25: 540000 | D25: 2020-05-04 | E25: DEED
A26: First Centennial Title | B26: FC | C26: 100000 | D26: 2020-05-08 | E26: DEED OF TRUST
A27: First Centennial Title | B27: FC | C27: 356000 | D27: 2020-05-22 | E27: DEED OF TRUST
A28: First Centennial Title | B28: FC | C28: 168250 | D28: 2020-05-08 | E28: DEED OF TRUST
A29: First Centennial Title | B29: FC | C29: 369500 | D29: 2020-05-13 | E29: DEED
A30: First Centennial Title | B30: FC | C30: 315000 | D30: 2020-05-28 | E30: DEED OF TRUST
A31: First Centennial Title | B31: FC | C31: 277200 | D31: 2020-05-12 | E31: DEED
A32: First Centennial Title | B32: FC | C32: 260000 | D32: 2020-05-19 | E32: DEED OF TRUST
A33: First Centennial Title | B33: FC | C33: 125000 | D33: 2020-05-28 | E33: DEED OF TRUST
A34: First Centennial Title | B34: FC | C34: 325000 | D34: 2020-05-01 | E34: DEED
A35: First Centennial Title | B35: FC | C35: 308691 | D35: 2020-05-06 | E35: DEED
A36: First Centennial Title | B36: FC | C36: 502500 | D36: 2020-05-28 | E36: DEED
A37: First Centennial Title | B37: FC | C37: 227000 | D37: 2020-05-20 | E37: DEED OF TRUST
A38: First Centennial Title | B38: FC | C38: 361000 | D38: 2020-05-18 | E38: DEED OF TRUST
A39: First Centennial Title | B39: FC | C39: 465000 | D39: 2020-05-27 | E39: DEED OF TRUST
A40: First Centennial Title | B40: FC | C40: 95000 | D40: 2020-05-27 | E40: DEED OF TRUST
A41: First Centennial Title | B41: FC | C41: 267370 | D41: 2020-05-01 | E41: DEED OF TRUST
A42: First Centennial Title | B42: FC | C42: 226800 | D42: 2020-05-20 | E42: DEED OF TRUST
A43: First Centennial Title | B43: FC | C43: 342000 | D43: 2020-05-20 | E43: DEED
A44: First Centennial Title | B44: FC | C44: 198000 | D44: 2020-05-21 | E44: DEED
A45: First Centennial Title | B45: FC | C45: 244000 | D45: 2020-05-26 | E45: DEED OF TRUST
A46: First Centennial Title | B46: FC | C46: 199000 | D46: 2020-05-26 | E46: DEED OF TRUST
A47: First Centennial Title | B47: FC | C47: 253100 | D47: 2020-05-13 | E47: DEED OF TRUST
A48: First Centennial Title | B48: FC | C48: 238000 | D48: 2020-05-26 | E48: DEED OF TRUST
A49: First Centennial Title | B49: FC | C49: 362100 | D49: 2020-05-22 | E49: DEED OF TRUST
A50: First Centennial Title | B50: FC | C50: 360000 | D50: 2020-05-19 | E50: DEED OF TRUST
A51: First Centennial Title | B51: FC | C51: 253500 | D51: 2020-05-08 | E51: DEED OF TRUST
A52: First Centennial Title | B52: FC | C52: 197000 | D52: 2020-05-18 | E52: DEED
A53: North American Title | B53: NA | C53: 80000 | D53: 2020-05-08 | E53: DEED
A54: North American Title | B54: NA | C54: 271000 | D54: 2020-05-08 | E54: DEED OF TRUST
A55: North American Title | B55: NA | C55: 274000 | D55: 2020-05-15 | E55: DEED
A56: North American Title | B56: NA | C56: 212897 | D56: 2020-05-15 | E56: DEED OF TRUST
A57: North American Title | B57: NA | C57: 715000 | D57: 2020-05-22 | E57: DEED OF TRUST
A58: Signature Title | B58: SIG | C58: 385000 | D58: 2020-05-29 | E58: DEED
A59: Stewart Title | B59: ST | C59: 390000 | D59: 2020-05-21 | E59: DEED
A60: Stewart Title | B60: ST | C60: 520000 | D60: 2020-05-27 | E60: DEED
A61: Stewart Title | B61: ST | C61: 175000 | D61: 2020-05-20 | E61: DEED OF TRUST
A62: Ticor Title | B62: TI | C62: 985000 | D62: 2020-05-27 | E62: DEED
A63: Ticor Title | B63: TI | C63: 478593 | D63: 2020-05-28 | E63: DEED OF TRUST
A64: Ticor Title | B64: TI | C64: 225000 | D64: 2020-05-08 | E64: DEED OF TRUST
A65: Ticor Title | B65: TI | C65: 238400 | D65: 2020-05-08 | E65: DEED OF TRUST
A66: Ticor Title | B66: TI | C66: 117000 | D66: 2020-05-28 | E66: DEED OF TRUST
A67: Ticor Title | B67: TI | C67: 119800 | D67: 2020-05-28 | E67: DEED
A68: Ticor Title | B68: TI | C68: 530000 | D68: 2020-05-27 | E68: DEED
A69: Ticor Title | B69: TI | C69: 260000 | D69: 2020-05-18 | E69: DEED OF TRUST
A70: Ticor Title | B70: TI | C70: 248000 | D70: 2020-05-28 | E70: DEED OF TRUST
A71: Ticor Title | B71: TI | C71: 259200 | D71: 2020-05-06 | E71: DEED OF TRUST
A72: Ticor Title | B72: TI | C72: 205000 | D72: 2020-05-29 | E72: DEED OF TRUST
A73: Ticor Title | B73: TI | C73: 179000 | D73: 2020-05-29 | E73: DEED OF TRUST
A74: Ticor Title | B74: TI | C74: 275000 | D74: 2020-05-29 | E74: DEED
A75: Ticor Title | B75: TI | C75: 244000 | D75: 2020-05-15 | E75: DEED
A76: Ticor Title | B76: TI | C76: 313600 | D76: 2020-05-15 | E76: DEED OF TRUST
A77: Ticor Title | B77: TI | C77: 32700 | D77: 2020-05-11 | E77: DEED OF TRUST
A78: Ticor Title | B78: TI | C78: 320000 | D78: 2020-05-06 | E78: DEED OF TRUST
A79: Ticor Title | B79: TI | C79: 151000 | D79: 2020-05-26 | E79: DEED OF TRUST
A80: Ticor Title | B80: TI | C80: 387000 | D80: 2020-05-06 | E80: DEED OF TRUST
A81: Ticor Title | B81: TI | C81: 187000 | D81: 2020-05-28 | E81: DEED OF TRUST
A82: Ticor Title | B82: TI | C82: 336000 | D82: 2020-05-28 | E82: DEED OF TRUST
A83: Ticor Title | B83: TI | C83: 319910 | D83: 2020-05-15 | E83: DEED OF TRUST
A84: Ticor Title | B84: TI | C84: 891875 | D84: 2020-05-29 | E84: DEED
A85: Ticor Title | B85: TI | C85: 170000 | D85: 2020-05-11 | E85: DEED OF TRUST
A86: Ticor Title | B86: TI | C86: 285287 | D86: 2020-05-12 | E86: DEED SUBDIVIDER
A87: Ticor Title | B87: TI | C87: 162300 | D87: 2020-05-26 | E87: DEED OF TRUST
A88: Ticor Title | B88: TI | C88: 188000 | D88: 2020-05-22 | E88: DEED OF TRUST
A89: Ticor Title | B89: TI | C89: 611040 | D89: 2020-05-04 | E89: DEED OF TRUST
A90: Ticor Title | B90: TI | C90: 300000 | D90: 2020-05-29 | E90: DEED
A91: Ticor Title | B91: TI | C91: 444500 | D91: 2020-05-22 | E91: DEED OF TRUST
A92: Ticor Title | B92: TI | C92: 294900 | D92: 2020-05-22 | E92: DEED
A93: Ticor Title | B93: TI | C93: 271500 | D93: 2020-05-19 | E93: DEED OF TRUST
A94: Ticor Title | B94: TI | C94: 180000 | D94: 2020-05-06 | E94: DEED
A95: Ticor Title | B95: TI | C95: 151000 | D95: 2020-05-06 | E95: DEED OF TRUST
A96: Ticor Title | B96: TI | C96: 268000 | D96: 2020-05-26 | E96: DEED OF TRUST
A97: Ticor Title | B97: TI | C97: 425400 | D97: 2020-05-29 | E97: DEED OF TRUST
A98: Ticor Title | B98: TI | C98: 301500 | D98: 2020-05-20 | E98: DEED OF TRUST
A99: Ticor Title | B99: TI | C99: 580000 | D99: 2020-05-26 | E99: DEED
A100: Ticor Title | B100: TI | C100: 304300 | D100: 2020-05-11 | E100: DEED OF TRUST
A101: Ticor Title | B101: TI | C101: 295000 | D101: 2020-05-28 | E101: DEED OF TRUST
A102: Ticor Title | B102: TI | C102: 260500 | D102: 2020-05-12 | E102: DEED OF TRUST
A103: Ticor Title | B103: TI | C103: 268000 | D103: 2020-05-29 | E103: DEED OF TRUST
A104: Ticor Title | B104: TI | C104: 250645 | D104: 2020-05-29 | E104: DEED OF TRUST
A105: Ticor Title | B105: TI | C105: 475000 | D105: 2020-05-01 | E105: DEED
A106: Ticor Title | B106: TI | C106: 95300 | D106: 2020-05-26 | E106: DEED OF TRUST
A107: Ticor Title | B107: TI | C107: 1995000 | D107: 2020-05-21 | E107: DEED OF TRUST
A108: Ticor Title | B108: TI | C108: 340000 | D108: 2020-05-26 | E108: DEED OF TRUST
A109: Ticor Title | B109: TI | C109: 343500 | D109: 2020-05-26 | E109: DEED OF TRUST
A110: Ticor Title | B110: TI | C110: 391900 | D110: 2020-05-06 | E110: DEED
A111: Ticor Title | B111: TI | C111: 350000 | D111: 2020-05-22 | E111: DEED
A112: Ticor Title | B112: TI | C112: 325000 | D112: 2020-05-29 | E112: DEED
A113: Toiyabe Title | B113: TT | C113: 724900 | D113: 2020-05-01 | E113: DEED
A114: Toiyabe Title | B114: TT | C114: 310000 | D114: 2020-05-19 | E114: DEED
A115: Toiyabe Title | B115: TT | C115: 320000 | D115: 2020-05-08 | E115: DEED
A116: Toiyabe Title | B116: TT | C116: 277000 | D116: 2020-05-08 | E116: DEED OF TRUST
A117: Western Title | B117: WE | C117: 330000 | D117: 2020-05-22 | E117: DEED
A118: Western Title | B118: WE | C118: 396931 | D118: 2020-05-12 | E118: DEED OF TRUST
A119: Western Title | B119: WE | C119: 312000 | D119: 2020-05-12 | E119: DEED OF TRUST
A120: Western Title | B120: WE | C120: 143000 | D120: 2020-05-27 | E120: DEED
A121: Western Title | B121: WE | C121: 412000 | D121: 2020-05-28 | E121: DEED OF TRUST
A122: Western Title | B122: WE | C122: 375000 | D122: 2020-05-28 | E122: DEED OF TRUST
A123: Western Title | B123: WE | C123: 368990 | D123: 2020-05-13 | E123: DEED OF TRUST
A124: Western Title | B124: WE | C124: 414000 | D124: 2020-05-28 | E124: DEED OF TRUST
A125: Western Title | B125: WE | C125: 218000 | D125: 2020-05-15 | E125: DEED OF TRUST
A126: Western Title | B126: WE | C126: 549000 | D126: 2020-05-13 | E126: DEED
A127: Western Title | B127: WE | C127: 229300 | D127: 2020-05-22 | E127: DEED OF TRUST
A128: Western Title | B128: WE | C128: 325000 | D128: 2020-05-29 | E128: DEED
A129: Western Title | B129: WE | C129: 260000 | D129: 2020-05-28 | E129: DEED OF TRUST
A130: Western Title | B130: WE | C130: 150000 | D130: 2020-05-12 | E130: DEED OF TRUST
A131: Western Title | B131: WE | C131: 400000 | D131: 2020-05-13 | E131: DEED
A132: Western Title | B132: WE | C132: 163535 | D132: 2020-05-27 | E132: DEED OF TRUST
A133: Western Title | B133: WE | C133: 186000 | D133: 2020-05-14 | E133: DEED OF TRUST
A134: Western Title | B134: WE | C134: 305000 | D134: 2020-05-27 | E134: DEED
A135: Western Title | B135: WE | C135: 325918 | D135: 2020-05-15 | E135: DEED OF TRUST
A136: Western Title | B136: WE | C136: 136500 | D136: 2020-05-15 | E136: DEED OF TRUST
A137: Western Title | B137: WE | C137: 600000 | D137: 2020-05-19 | E137: DEED OF TRUST
A138: Western Title | B138: WE | C138: 125000 | D138: 2020-05-26 | E138: DEED OF TRUST
A139: Western Title | B139: WE | C139: 705128 | D139: 2020-05-13 | E139: DEED SUBDIVIDER
A140: Western Title | B140: WE | C140: 370000 | D140: 2020-05-14 | E140: DEED
A141: Western Title | B141: WE | C141: 142000 | D141: 2020-05-18 | E141: DEED OF TRUST
A142: Western Title | B142: WE | C142: 8664 | D142: 2020-05-29 | E142: DEED OF TRUST
A143: Western Title | B143: WE | C143: 452236 | D143: 2020-05-28 | E143: DEED SUBDIVIDER
A144: Western Title | B144: WE | C144: 335000 | D144: 2020-05-08 | E144: DEED
A145: Western Title | B145: WE | C145: 216600 | D145: 2020-05-29 | E145: DEED OF TRUST
A146: Western Title | B146: WE | C146: 381000 | D146: 2020-05-29 | E146: DEED OF TRUST
A147: Western Title | B147: WE | C147: 270000 | D147: 2020-05-08 | E147: DEED OF TRUST
A148: Western Title | B148: WE | C148: 233500 | D148: 2020-05-08 | E148: DEED OF TRUST
A149: Western Title | B149: WE | C149: 294000 | D149: 2020-05-07 | E149: DEED OF TRUST
A150: Western Title | B150: WE | C150: 435225 | D150: 2020-05-05 | E150: DEED OF TRUST
A151: Western Title | B151: WE | C151: 365000 | D151: 2020-05-13 | E151: DEED
A152: Western Title | B152: WE | C152: 228000 | D152: 2020-05-29 | E152: DEED
A153: Western Title | B153: WE | C153: 217000 | D153: 2020-05-18 | E153: DEED OF TRUST
A154: Western Title | B154: WE | C154: 280000 | D154: 2020-05-18 | E154: DEED
A155: Western Title | B155: WE | C155: 349900 | D155: 2020-05-20 | E155: DEED
A156: Western Title | B156: WE | C156: 233000 | D156: 2020-05-19 | E156: DEED OF TRUST
A157: Western Title | B157: WE | C157: 148265 | D157: 2020-05-26 | E157: DEED OF TRUST
A158: Western Title | B158: WE | C158: 75000 | D158: 2020-05-01 | E158: DEED OF TRUST
A159: Western Title | B159: WE | C159: 210283 | D159: 2020-05-27 | E159: DEED OF TRUST
A160: Western Title | B160: WE | C160: 173000 | D160: 2020-05-20 | E160: DEED OF TRUST
A161: Western Title | B161: WE | C161: 262108 | D161: 2020-05-15 | E161: DEED OF TRUST
A162: Western Title | B162: WE | C162: 403733 | D162: 2020-05-20 | E162: DEED OF TRUST
A163: Western Title | B163: WE | C163: 370000 | D163: 2020-05-20 | E163: DEED
A164: Western Title | B164: WE | C164: 274000 | D164: 2020-05-20 | E164: DEED OF TRUST
A165: Western Title | B165: WE | C165: 510400 | D165: 2020-05-20 | E165: DEED OF TRUST
A166: Western Title | B166: WE | C166: 174000 | D166: 2020-05-20 | E166: DEED OF TRUST
A167: Western Title | B167: WE | C167: 261900 | D167: 2020-05-26 | E167: DEED OF TRUST
